{"text_format":"1","workbook":"xlsx","n_sheets":1,"sheets":["Feuil1"],"not_rendered":{"charts":0,"images":0,"macros":0,"external_links":0,"defined_names":3,"comments":0,"pivot_tables":0},"unopened":[],"bounds":{"document_bytes":16777216,"sheet_cells":100000,"rows_first":2000,"rows_last":500,"rows_between":2000,"halvings":0,"cell_chars":16384,"cell_head_chars":4096},"cells_cut":0,"cells_raw":0,"read":"whole","date_system":"1900"}

{"sheet":"Feuil1","index":0,"n_rows":84,"n_cols":36,"rows_kept":84,"cut":false,"hidden":false,"merged":[[2,0,2,2],[3,4,3,35],[1,17,1,19],[1,20,1,24],[1,4,1,16],[1,25,1,35]]}
[null,null,null,null,"Pages html dans le répertoire général","Page d'accueil nommée index.html","index.html avec : noms, prénoms,  groupe","Trois autres pages html/Nom des pages","Liens entre pages (index <> exp <> res <> quizz et ….) - \nAller/Retour dans les pages du site","Fichiers de données dans répertoire Data","Liens fichiers données <> exp","Liens internes (ancrage)","Liens externes vers d'autres sites","tableau (balise <table>)","listes à puce, à numéro (balise <OL> ou <UL>)","symboles diacritiques","Feuille de style pour toutes les pages\n sauf la index  (qui peut être une image mappée)","Cases à cocher, menus, boutons radios","Boutons \"Envoyer\" et \"Annuler\"","Codage html et javascript corrects","Images dans sous-répertoire Images","Images simples","Images cliquables","Images à zones cliquables (map)","Boutons dynamiques","Q1.2 Nombre de pays avec tant que (0 si pas de tant que)","Q2.2 Baisse1314","Q3.2 estCompletAfghanistan","Q3.5 estCompletParam\nPas plus de 7 si pb dans les param","Q3.6 essai","Q3.8 estCompletParamFonc\nOn note le fait que c'est bien une fonction","Q3.9 essai2\nTous les points si essai 2 fait le boulot, \nappel de param ou fonc","Q4.2 copie des données page 4\nOn compte la moitié des points si pas itération","Q5.2 Formule de corrélation écrite","Q5.3 Mise en œuvre d'une solution pour conclure","Conclusion (dans le document HTML)"]
[null,null,null,null,"Page HTML",null,null,null,null,null,null,null,null,null,null,null,null,"Quizz",null,null,"Images",null,null,null,null,"VBA"]
["Barème",null,null,{"$f":"SUM(E3:AJ3)/8","v":20},2,2,1,3,6,2,2,4,4,4,2,4,4,6,2,10,2,4,4,6,6,6,6,6,15,3,16,8,6,4,4,6]
["Num Etu","Nom","Prénom","NOTE"]
[null,null,null,{"$f":"SUM(E5:AJ5)/8","v":0}]
[null,null,null,{"$f":"SUM(E6:AJ6)/8","v":0}]
[null,null,null,0]
[null,null,null,0]
[null,null,null,0]
[null,null,null,0]
[null,null,null,0]
[null,null,null,0]
[null,null,null,0]
[null,null,null,0]
[null,null,null,0]
[null,null,null,0]
[null,null,null,0]
[null,null,null,0]
[null,null,null,0]
[null,null,null,0]
[null,null,null,0]
[null,null,null,0]
[null,null,null,0]
[null,null,null,0]
[null,null,null,0]
[null,null,null,0]
[null,null,null,0]
[null,null,null,0]
[null,null,null,0]
[null,null,null,0]
[null,null,null,0]
[null,null,null,0]
[null,null,null,0]
[null,null,null,0]
[null,null,null,0]
[null,null,null,0]
[null,null,null,0]
[null,null,null,0]
[null,null,null,0]
[null,null,null,0]
[null,null,null,0]
[null,null,null,0]
[null,null,null,0]
[null,null,null,0]
[null,null,null,0]
[null,null,null,0]
[null,null,null,0]
[null,null,null,0]
[null,null,null,0]
[null,null,null,0]
[null,null,null,0]
[null,null,null,0]
[null,null,null,0]
[null,null,null,0]
[null,null,null,0]
[null,null,null,0]
[null,null,null,0]
[null,null,null,0]
[null,null,null,0]
[null,null,null,0]
[null,null,null,0]
[null,null,null,0]
[null,null,null,0]
[null,null,null,0]
[null,null,null,0]
[null,null,null,0]
[null,null,null,0]
[null,null,null,0]
[null,null,null,0]
[null,null,null,{"$f":"SUM(E70:AJ70)/8","v":0}]
[null,null,null,0]
[null,null,null,0]
[null,null,null,0]
[null,null,null,0]
[null,null,null,0]
[null,null,null,0]
[null,null,null,0]
[null,null,null,0]
[null,null,null,0]
[null,null,null,0]
[null,null,null,0]
[null,null,null,0]
[null,null,null,0]
[null,null,null,0]